[Event "Vienna Chess Open 2019"]
[Site "Vienna"]
[Date "2019.08.18"]
[Round "2.12"]
[White "Meyer, Gordon"]
[Black "Janzelj, Tim"]
[Result "1/2-1/2"]
[ECO "B41"]
[WhiteElo "2225"]
[BlackElo "2435"]
[Annotator "ChessBase"]
[PlyCount "147"]
[EventDate "2019.08.17"]
[EventType "swiss"]
[EventCountry "AUT"]
[SourceTitle "playchess.com"]
[Source "ChessBase"]
[SourceQuality "1"]
[TimeControl "40/5400+30:1800+30"]

1. e4 {[%emt 0:00:00]} c5 {[%emt 0:05:07]} 2. Nf3 {[%emt 0:00:00]} e6 {[%emt 0:00:19]} 3. d4 {[%emt 0:00:41]} cxd4 {[%emt 0:00:12]} 4. Nxd4 {[%emt 0:00:04]} a6 {[%emt 0:00:56]} 5. c4 {[%emt 0:00:13]} Nf6 {[%emt 0:00:21]} 6. Nc3 {[%emt 0:00:11]} Qc7 {[%emt 0:00:58]} 7. Nc2 {[%emt 0:01:19]} Be7 {[%emt 0:01:14]} 8. Be2 {[%emt 0:00:19]} O-O {[%emt 0:00:14]} 9. O-O {[%emt 0:00:16]} d6 {[%emt 0:02:04]} 10. Be3 {[%emt 0:01:14]} b6 {[%emt 0:00:34]} 11. Rc1 {[%emt 0:01:41]} Bb7 {[%emt 0:00:20]} 12. f3 {[%emt 0:01:25]} Nbd7 {[%emt 0:00:20]} 13. Qe1 {[%emt 0:00:52]} Rac8 {[%emt 0:00:37]} 14. Qf2 {[%emt 0:01:13]} Bd8 {[%emt 0:01:22]} 15. Rfd1 {[%emt 0:03:01]} Qb8 {[%emt 0:00:41]} 16. Kh1 {[%emt 0:04:52]} Bc7 {[%emt 0:00:39]} 17. Qg1 {[%emt 0:04:53]} Rfe8 {[%emt 0:01:26]} 18. Bf1 {[%emt 0:01:38]} h5 {[%emt 0:05:10]} 19. b4 {[%emt 0:02:22]} h4 {[%emt 0:02:42]} 20. Ne1 {[%emt 0:04:34]} Qa8 {[%emt 0:19:16]} 21. Rc2 {[%emt 0:26:59]} Bb8 {[%emt 0:12:02]} 22. Na4 {[%emt 0:05:03]} b5 {[%emt 0:08:06]} 23. cxb5 {[%emt 0:15:59]} Rxc2 {[%emt 0:00:25]} 24. Nxc2 {[%emt 0:00:32]} axb5 {[%emt 0:00:07]} 25. Bxb5 {[%emt 0:01:19]} Rc8 {[%emt 0:01:04]} 26. Ne1 {[%emt 0:05:17]} d5 {[%emt 0:04:54]} 27. Qf2 {[%emt 0:05:32]} Bd6 {[%emt 0:11:42]} 28. exd5 {[%emt 0:01:30]} Bxd5 {[%emt 0:00:13]} 29. Qxh4 {[%emt 0:00:17]} Rb8 {[%emt 0:02:12]} 30. Nc3 {[%emt 0:01:05]} Ne5 {[%emt 0:02:55]} 31. a4 Be7 {[%emt 0:09:20]} 32. Qg3 {[%emt 0:09:01]} Ng6 {[%emt 0:04:00]} 33. Nxd5 {[%emt 0:01:00]} Nxd5 {[%emt 0:00:18]} 34. Bc6 {[%emt 0:00:59]} Qxc6 {[%emt 0:00:48]} 35. Qxb8+ {[%emt 0:00:04]} Kh7 {[%emt 0:00:05]} 36. b5 {[%emt 0:00:32]} Qc4 {[%emt 0:00:05]} 37. Bg1 {[%emt 0:01:11]} Qe2 {[%emt 0:03:00]} 38. Rb1 {[%emt 0:00:56]} Nc3 {[%emt 0:00:37]} 39. Rc1 {[%emt 0:00:24]} Qd2 {[%emt 0:00:28]} 40. Rxc3 {[%emt 0:00:59]} Qxc3 {[%emt 0:00:02]} 41. Bf2 {[%emt 0:04:25]} Qc4 {[%emt 0:14:39]} 42. Kg1 {[%emt 0:03:13]} Nf4 {[%emt 0:03:41]} 43. Qe5 {[%emt 0:01:06]} Ne2+ {[%emt 0:00:22]} 44. Kh1 {[%emt 0:00:13]} Nc3 {[%emt 0:00:07]} 45. Qe3 {[%emt 0:03:01]} g6 {[%emt 0:06:40]} 46. Qd3 {[%emt 0:06:57]} Qb4 {[%emt 0:00:09]} 47. Qd4 {[%emt 0:02:04]} Qb3 {[%emt 0:02:36]} 48. b6 {[%emt 0:01:54]} Nd5 {[%emt 0:07:40]} 49. a5 {[%emt 0:00:58]} Qb5 {[%emt 0:00:01]} 50. Nd3 {[%emt 0:04:08]} Bf6 {[%emt 0:01:14]} 51. Qe4 {[%emt 0:01:26]} Qxa5 {[%emt 0:00:16]} 52. b7 {[%emt 0:03:08]} Qb5 {[%emt 0:00:15]} 53. Nc5 {[%emt 0:01:16]} Be7 {[%emt 0:01:15]} 54. Qd3 {[%emt 0:02:18]} Qb2 {[%emt 0:00:05]} 55. Qd4 {[%emt 0:01:14]} Qb1+ {[%emt 0:00:33]} 56. Bg1 {[%emt 0:00:08]} Bxc5 {[%emt 0:00:36]} 57. Qxc5 {[%emt 0:00:11]} Qxb7 {[%emt 0:00:01]} 58. h3 {[%emt 0:00:50]} Qb1 {[%emt 0:00:13]} 59. Qf2 {[%emt 0:00:17]} Kg8 {[%emt 0:00:10]} 60. Kh2 {[%emt 0:00:13]} Qf5 {[%emt 0:00:57]} 61. Qh4 {[%emt 0:00:10]} Qe5+ {[%emt 0:01:06]} 62. Qg3 {[%emt 0:00:18]} Nf4 {[%emt 0:00:12]} 63. Bf2 {[%emt 0:01:17]} f6 {[%emt 0:00:09]} 64. Be1 {[%emt 0:00:17]} Qf5 {[%emt 0:00:56]} 65. Bd2 {[%emt 0:00:26]} e5 {[%emt 0:00:53]} 66. Bxf4 {[%emt 0:00:11]} Qxf4 {[%emt 0:00:41]} 67. Qxf4 {[%emt 0:00:14]} exf4 {[%emt 0:00:01]} 68. g3 {[%emt 0:00:29]} fxg3+ {[%emt 0:00:46]} 69. Kxg3 {[%emt 0:00:04]} Kg7 {[%emt 0:00:21]} 70. Kg4 {[%emt 0:00:20]} Kh6 {[%emt 0:00:07]} 71. f4 {[%emt 0:00:29]} f5+ {[%emt 0:00:09]} 72. Kh4 {[%emt 0:00:14]} g5+ {[%emt 0:00:04]} 73. fxg5+ {[%emt 0:00:06]} Kg6 {[%emt 0:00:04]} 74. Kg3 {[%emt 0:00:03]} 1/2-1/2

[Event "Vienna Chess Open 2019"]
[Site "Vienna"]
[Date "2019.08.18"]
[Round "3.1"]
[White "Ankit, R. Rajpara"]
[Black "Huber, Martin Christian"]
[Result "1/2-1/2"]
[ECO "A48"]
[WhiteElo "2454"]
[BlackElo "2337"]
[Annotator "ChessBase"]
[PlyCount "53"]
[EventDate "2019.08.17"]
[EventType "swiss"]
[EventCountry "AUT"]
[SourceTitle "playchess.com"]
[Source "ChessBase"]
[SourceQuality "1"]
[TimeControl "40/5400+30:1800+30"]

1. d4 {[%emt 0:00:00]} Nf6 {[%emt 0:00:00]} 2. Nf3 {[%emt 0:00:00]} g6 {[%emt 0:00:15]} 3. Nbd2 {[%emt 0:00:00]} c5 {[%emt 0:03:08]} 4. dxc5 {[%emt 0:01:56]} Qa5 {[%emt 0:00:29]} 5. b3 {[%emt 0:01:01]} Bg7 {[%emt 0:04:10]} 6. Bb2 {[%emt 0:00:24]} Qxc5 {[%emt 0:02:17]} 7. e3 {[%emt 0:00:25]} O-O {[%emt 0:00:50]} 8. Be2 {[%emt 0:00:43]} b6 {[%emt 0:04:43]} 9. O-O {[%emt 0:01:48]} Bb7 {[%emt 0:00:10]} 10. c4 {[%emt 0:00:57]} d6 {[%emt 0:01:10]} 11. Rc1 {[%emt 0:01:18]} Nbd7 {[%emt 0:00:42]} 12. Nb1 {[%emt 0:09:27]} Ne4 {[%emt 0:18:43]} 13. Bxg7 {[%emt 0:17:37]} Kxg7 {[%emt 0:00:10]} 14. Nd4 {[%emt 0:03:33]} Qg5 {[%emt 0:05:21]} 15. g3 {[%emt 0:16:02]} h5 {[%emt 0:14:40]} 16. Nd2 {[%emt 0:10:49]} Ndf6 {[%emt 0:04:09]} 17. Nxe4 {[%emt 0:03:11]} Nxe4 {[%emt 0:02:46]} 18. Bf3 {[%emt 0:01:27]} h4 {[%emt 0:10:23]} 19. Bxe4 {[%emt 0:04:07]} Bxe4 {[%emt 0:00:13]} 20. Nf3 {[%emt 0:00:33]} Bxf3 {[%emt 0:03:54]} 21. Qxf3 {[%emt 0:00:22]} Rh8 {[%emt 0:03:02]} 22. Rfd1 {[%emt 0:02:45]} hxg3 {[%emt 0:01:32]} 23. hxg3 {[%emt 0:00:18]} Qh5 {[%emt 0:00:56]} 24. Qxh5 {[%emt 0:01:43]} Rxh5 {[%emt 0:00:13]} 25. Rd5 {[%emt 0:00:52]} Rah8 {[%emt 0:01:30]} 26. Rxh5 {[%emt 0:03:13]} Rxh5 {[%emt 0:00:35]} 27. Kg2 {[%emt 0:02:15]} 1/2-1/2

[Event "Vienna Chess Open 2019"]
[Site "Vienna"]
[Date "2019.08.18"]
[Round "3.1"]
[White "Valmana Canto, Jaime"]
[Black "Zetthofer, Gerald"]
[Result "1-0"]
[ECO "B10"]
[WhiteElo "2406"]
[BlackElo "2273"]
[Annotator "NA"]
[PlyCount "31"]
[EventDate "2019.08.17"]
[EventType "swiss"]
[EventCountry "AUT"]
[SourceTitle "playchess.com"]
[Source "ChessBase"]
[SourceQuality "1"]
[TimeControl "40/5400+30:1800+30"]

1. e4 {[%emt 0:04:37]} c6 {[%emt 0:00:00]} 2. Nc3 {[%emt 0:02:02]} d5 {[%emt 0:00:00]} 3. Nf3 {[%emt 0:00:05]} d4 {[%emt 0:02:02]} 4. Ne2 {[%emt 0:00:35]} c5 {[%emt 0:00:24]} 5. c3 {[%emt 0:04:44]} Nc6 {[%emt 0:00:14]} 6. cxd4 {[%emt 0:00:43]} cxd4 {[%emt 0:01:45]} 7. Qa4 {[%emt 0:00:22]} Bd7 {[%emt 0:03:21]} 8. Nexd4 {[%emt 0:00:25]} e5 {[%emt 0:00:28]} 9. Nxc6 {[%emt 0:00:15]} Bxc6 {[%emt 0:00:44]} 10. Bb5 {[%emt 0:00:07]} Bd6 {[%emt 0:05:49]} 11. Bxc6+ {[%emt 0:00:59]} bxc6 {[%emt 0:00:04]} 12. Qxc6+ {[%emt 0:00:15]} Kf8 {[%emt 0:01:23]} 13. O-O {[%emt 0:00:41]} Ne7 {[%emt 0:00:17]} 14. Qa6 {[%emt 0:00:31]} g6 {[%emt 0:02:04]} 15. d4 {[%emt 0:00:30]} exd4 {[%emt 0:00:54]} 16. Bh6+ {[%emt 0:00:08]} 1-0

[Event "Vienna Chess Open 2019"]
[Site "Vienna"]
[Date "2019.08.18"]
[Round "3.2"]
[White "Mostbauer, Florian"]
[Black "Buckels, Valentin"]
[Result "1/2-1/2"]
[ECO "A46"]
[WhiteElo "2338"]
[BlackElo "2453"]
[Annotator "ChessBase"]
[PlyCount "51"]
[EventDate "2019.08.17"]
[EventType "swiss"]
[EventCountry "AUT"]
[SourceTitle "playchess.com"]
[Source "ChessBase"]
[SourceQuality "1"]
[TimeControl "40/5400+30:1800+30"]

1. d4 {[%emt 0:00:00]} Nf6 {[%emt 0:03:04]} 2. Nf3 {[%emt 0:00:00]} e6 {[%emt 0:00:10]} 3. e3 {[%emt 0:00:00]} b6 {[%emt 0:00:35]} 4. Bd3 {[%emt 0:00:00]} Bb7 {[%emt 0:00:24]} 5. O-O {[%emt 0:00:09]} c5 {[%emt 0:01:19]} 6. c4 {[%emt 0:00:15]} g6 {[%emt 0:02:34]} 7. Nc3 {[%emt 0:01:39]} Bg7 {[%emt 0:01:17]} 8. d5 {[%emt 0:05:31]} exd5 {[%emt 0:12:50]} 9. cxd5 {[%emt 0:00:12]} O-O {[%emt 0:00:48]} 10. e4 {[%emt 0:00:42]} d6 {[%emt 0:00:19]} 11. Re1 {[%emt 0:02:16]} Re8 {[%emt 0:02:38]} 12. Nd2 {[%emt 0:03:59]} Ba6 {[%emt 0:07:37]} 13. Bxa6 {[%emt 0:01:33]} Nxa6 {[%emt 0:00:02]} 14. Nc4 {[%emt 0:03:09]} Qd7 {[%emt 0:11:33]} 15. a4 {[%emt 0:04:37]} Nc7 {[%emt 0:03:43]} 16. Bf4 {[%emt 0:05:16]} Bf8 {[%emt 0:00:28]} 17. f3 {[%emt 0:04:20]} Nh5 {[%emt 0:04:31]} 18. Be3 {[%emt 0:08:13]} f5 {[%emt 0:02:22]} 19. exf5 {[%emt 0:04:25]} gxf5 {[%emt 0:00:48]} 20. Qd2 {[%emt 0:07:22]} Bg7 {[%emt 0:07:16]} 21. Bf2 {[%emt 0:01:47]} h6 {[%emt 0:08:09]} 22. Be3 {[%emt 0:04:52]} Kh7 {[%emt 0:00:24]} 23. Qd3 {[%emt 0:00:49]} Kh8 {[%emt 0:06:04]} 24. Qd2 {[%emt 0:02:02]} Kh7 {[%emt 0:05:05]} 25. Qd3 {[%emt 0:00:42]} Kh8 {[%emt 0:02:18]} 26. Qd2 {[%emt 0:01:24]} 1/2-1/2

[Event "Vienna Chess Open 2019"]
[Site "Vienna"]
[Date "2019.08.18"]
[Round "3.2"]
[White "Steindl, Johannes"]
[Black "Schwabeneder, Florian"]
[Result "1/2-1/2"]
[ECO "C10"]
[WhiteElo "2277"]
[BlackElo "2404"]
[Annotator "NA"]
[PlyCount "28"]
[EventDate "2019.08.17"]
[EventType "swiss"]
[EventCountry "AUT"]
[SourceTitle "playchess.com"]
[Source "ChessBase"]
[SourceQuality "1"]
[TimeControl "40/5400+30:1800+30"]

1. e4 {[%emt 0:11:29]} e6 {[%emt 0:00:59]} 2. d4 {[%emt 0:00:11]} d5 {[%emt 0:00:08]} 3. Nc3 {[%emt 0:00:06]} Nc6 {[%emt 0:00:52]} 4. Nf3 {[%emt 0:00:10]} Nf6 {[%emt 0:00:09]} 5. Bd3 {[%emt 0:00:17]} Nb4 {[%emt 0:00:45]} 6. e5 {[%emt 0:01:15]} Nxd3+ {[%emt 0:02:10]} 7. cxd3 {[%emt 0:00:08]} Ng8 {[%emt 0:02:03]} 8. Bd2 {[%emt 0:06:26]} Ne7 {[%emt 0:12:11]} 9. Rc1 {[%emt 0:03:08]} c6 {[%emt 0:04:59]} 10. h4 {[%emt 0:25:44]} h5 {[%emt 0:14:46]} 11. Ne2 {[%emt 0:03:51]} Nf5 {[%emt 0:03:56]} 12. Ng3 {[%emt 0:04:09]} Qb6 {[%emt 0:06:16]} 13. Nxf5 {[%emt 0:01:28]} exf5 {[%emt 0:00:13]} 14. Qc2 {[%emt 0:03:35]} Be6 {[%emt 0:12:01]} 1/2-1/2

[Event "Vienna Chess Open 2019"]
[Site "Vienna"]
[Date "2019.08.18"]
[Round "3.5"]
[White "Bai, Adelard"]
[Black "Kaasen, Tor Fredrik"]
[Result "0-1"]
[ECO "E10"]
[WhiteElo "2033"]
[BlackElo "2373"]
[Annotator "NA"]
[PlyCount "68"]
[EventDate "2019.08.17"]
[EventType "swiss"]
[EventCountry "AUT"]
[SourceTitle "playchess.com"]
[Source "ChessBase"]
[SourceQuality "1"]
[TimeControl "40/5400+30:1800+30"]

1. d4 {[%emt 0:00:00]} Nf6 {[%emt 0:00:00]} 2. c4 {[%emt 0:00:00]} e6 {[%emt 0:00:19]} 3. Nf3 {[%emt 0:00:27]} d5 {[%emt 0:00:30]} 4. g3 {[%emt 0:00:20]} Bb4+ {[%emt 0:00:56]} 5. Bd2 {[%emt 0:00:20]} Be7 {[%emt 0:00:21]} 6. Bg2 {[%emt 0:00:38]} O-O {[%emt 0:00:12]} 7. O-O {[%emt 0:00:41]} c6 {[%emt 0:00:33]} 8. Qc2 {[%emt 0:00:38]} b6 {[%emt 0:00:46]} 9. Bf4 {[%emt 0:02:52]} Ba6 {[%emt 0:04:23]} 10. Nbd2 {[%emt 0:02:20]} Nbd7 {[%emt 0:00:49]} 11. Rfe1 {[%emt 0:03:46]} Nh5 {[%emt 0:05:35]} 12. Be3 {[%emt 0:09:28]} Rc8 {[%emt 0:00:56]} 13. b3 {[%emt 0:07:16]} f5 {[%emt 0:02:43]} 14. Bh3 {[%emt 0:05:57]} g5 {[%emt 0:04:55]} 15. g4 {[%emt 0:07:40]} Ng7 {[%emt 0:00:28]} 16. Nf1 {[%emt 0:00:31]} fxg4 {[%emt 0:08:10]} 17. Bxg4 {[%emt 0:03:28]} h5 {[%emt 0:00:09]} 18. Bh3 {[%emt 0:04:02]} g4 {[%emt 0:01:15]} 19. Bg2 {[%emt 0:00:12]} gxf3 {[%emt 0:00:17]} 20. Bxf3 {[%emt 0:00:06]} Nf6 {[%emt 0:03:55]} 21. Kh1 {[%emt 0:00:22]} Bd6 {[%emt 0:04:49]} 22. Qg6 {[%emt 0:01:06]} Qe8 {[%emt 0:00:42]} 23. Qg2 {[%emt 0:00:15]} Kh7 {[%emt 0:00:54]} 24. Bg5 {[%emt 0:01:35]} Qg6 {[%emt 0:01:16]} 25. Nd2 {[%emt 0:00:58]} Bb4 {[%emt 0:00:43]} 26. Rad1 {[%emt 0:01:17]} Bxd2 {[%emt 0:01:03]} 27. Rxd2 {[%emt 0:00:08]} Ne4 {[%emt 0:00:09]} 28. Bxe4 {[%emt 0:00:15]} Qxe4 {[%emt 0:00:56]} 29. f3 {[%emt 0:00:13]} Qg6 {[%emt 0:00:29]} 30. e4 {[%emt 0:00:24]} Rf7 {[%emt 0:00:30]} 31. h4 {[%emt 0:00:56]} Rcf8 {[%emt 0:00:10]} 32. cxd5 {[%emt 0:00:22]} cxd5 {[%emt 0:00:32]} 33. Re3 {[%emt 0:00:17]} dxe4 {[%emt 0:01:19]} 34. fxe4 {[%emt 0:00:07]} Bb7 {[%emt 0:00:11]} 0-1

[Event "Vienna Chess Open 2019"]
[Site "Vienna"]
[Date "2019.08.18"]
[Round "3.6"]
[White "Miedema, David"]
[Black "Kiss, Balint"]
[Result "1-0"]
[ECO "C70"]
[WhiteElo "2371"]
[BlackElo "2200"]
[Annotator "NA"]
[PlyCount "85"]
[EventDate "2019.08.17"]
[EventType "swiss"]
[EventCountry "AUT"]
[SourceTitle "playchess.com"]
[Source "ChessBase"]
[SourceQuality "1"]
[TimeControl "40/5400+30:1800+30"]

1. e4 {[%emt 0:00:00]} e5 {[%emt 0:00:00]} 2. Nf3 {[%emt 0:00:00]} Nc6 {[%emt 0:00:00]} 3. Bb5 {[%emt 0:00:00]} a6 {[%emt 0:00:07]} 4. Ba4 {[%emt 0:00:00]} Nge7 {[%emt 0:00:28]} 5. O-O {[%emt 0:03:44]} g6 {[%emt 0:00:12]} 6. c3 {[%emt 0:00:05]} Bg7 {[%emt 0:00:35]} 7. d4 {[%emt 0:00:07]} exd4 {[%emt 0:00:35]} 8. cxd4 {[%emt 0:00:05]} b5 {[%emt 0:01:03]} 9. Bb3 {[%emt 0:00:05]} d6 {[%emt 0:01:17]} 10. Nc3 {[%emt 0:00:41]} O-O {[%emt 0:00:24]} 11. h3 {[%emt 0:00:26]} Na5 {[%emt 0:00:53]} 12. Bc2 {[%emt 0:00:07]} c5 {[%emt 0:02:50]} 13. d5 {[%emt 0:07:34]} b4 {[%emt 0:14:44]} 14. Ne2 {[%emt 0:00:51]} Nc4 {[%emt 0:04:02]} 15. Rb1 {[%emt 0:02:38]} a5 {[%emt 0:03:18]} 16. b3 {[%emt 0:00:54]} Nb6 {[%emt 0:06:38]} 17. Re1 {[%emt 0:04:18]} a4 {[%emt 0:02:09]} 18. bxa4 {[%emt 0:02:29]} Bd7 {[%emt 0:01:05]} 19. a3 {[%emt 0:00:04]} bxa3 {[%emt 0:01:36]} 20. Bxa3 {[%emt 0:00:14]} Nxa4 {[%emt 0:01:37]} 21. Bc1 {[%emt 0:00:47]} Nc3 {[%emt 0:06:20]} 22. Nxc3 {[%emt 0:02:02]} Bxc3 {[%emt 0:02:25]} 23. Re3 {[%emt 0:00:10]} Bg7 {[%emt 0:06:26]} 24. Reb3 {[%emt 0:02:15]} Ba4 {[%emt 0:10:37]} 25. Rb7 {[%emt 0:02:18]} Bxc2 {[%emt 0:00:12]} 26. Qxc2 {[%emt 0:00:03]} Nc8 {[%emt 0:00:43]} 27. Bf4 {[%emt 0:04:15]} Ra7 {[%emt 0:05:20]} 28. Rxa7 {[%emt 0:00:51]} Nxa7 {[%emt 0:00:02]} 29. Qa4 {[%emt 0:00:06]} Nc8 {[%emt 0:01:04]} 30. Rb7 {[%emt 0:02:08]} Qf6 {[%emt 0:00:47]} 31. e5 {[%emt 0:02:13]} dxe5 {[%emt 0:01:20]} 32. Bxe5 {[%emt 0:02:30]} Qf5 {[%emt 0:01:19]} 33. Bxg7 {[%emt 0:01:08]} Kxg7 {[%emt 0:00:03]} 34. Qc6 {[%emt 0:00:12]} Qf6 {[%emt 0:10:50]} 35. Qxc5 {[%emt 0:00:59]} Nd6 {[%emt 0:01:07]} 36. Rd7 {[%emt 0:01:56]} Ne4 {[%emt 0:02:46]} 37. Qe3 {[%emt 0:04:02]} Qa1+ {[%emt 0:05:29]} 38. Kh2 {[%emt 0:01:22]} Nf6 {[%emt 0:00:45]} 39. Ra7 {[%emt 0:01:19]} Qd1 {[%emt 0:01:13]} 40. Nd4 {[%emt 0:03:05]} Re8 {[%emt 0:03:09]} 41. Nf5+ {[%emt 0:31:23]} Kg8 {[%emt 0:33:25]} 42. Nh6+ {[%emt 0:01:07]} Kh8 {[%emt 0:00:08]} 43. Qc3 {[%emt 0:00:29]} 1-0

[Event "Vienna Chess Open 2019"]
[Site "Vienna"]
[Date "2019.08.18"]
[Round "3.6"]
[White "Pantzar, Milton"]
[Black "Hertneck, Gerald"]
[Result "0-1"]
[ECO "D70"]
[WhiteElo "2356"]
[BlackElo "2495"]
[Annotator "ChessBase"]
[PlyCount "70"]
[EventDate "2019.08.17"]
[EventType "swiss"]
[EventCountry "AUT"]
[SourceTitle "playchess.com"]
[Source "ChessBase"]
[SourceQuality "1"]
[TimeControl "40/5400+30:1800+30"]

1. d4 {[%emt 0:00:00]} d5 {[%emt 0:00:00]} 2. c4 {[%emt 0:00:00]} c6 {[%emt 0:00:00]} 3. Nf3 {[%emt 0:00:07]} Nf6 {[%emt 0:00:00]} 4. Nbd2 {[%emt 0:00:19]} Bf5 {[%emt 0:00:01]} 5. Nh4 {[%emt 0:00:45]} Be4 {[%emt 0:02:57]} 6. Qb3 {[%emt 0:01:09]} Qb6 {[%emt 0:00:55]} 7. f3 {[%emt 0:01:24]} Bg6 {[%emt 0:00:08]} 8. cxd5 {[%emt 0:00:58]} cxd5 {[%emt 0:00:49]} 9. Qxb6 {[%emt 0:00:19]} axb6 {[%emt 0:00:05]} 10. Nxg6 {[%emt 0:00:05]} hxg6 {[%emt 0:00:07]} 11. e3 {[%emt 0:00:20]} Nc6 {[%emt 0:00:17]} 12. Kf2 {[%emt 0:01:01]} e6 {[%emt 0:00:11]} 13. Bb5 {[%emt 0:02:06]} Bd6 {[%emt 0:00:07]} 14. h3 {[%emt 0:00:45]} Ke7 {[%emt 0:00:10]} 15. Nb3 {[%emt 0:09:49]} Na5 {[%emt 0:10:20]} 16. Nxa5 {[%emt 0:05:26]} bxa5 {[%emt 0:00:33]} 17. Bd3 {[%emt 0:04:42]} Rhc8 {[%emt 0:02:02]} 18. h4 {[%emt 0:10:36]} b5 {[%emt 0:04:11]} 19. g4 {[%emt 0:03:22]} b4 {[%emt 0:02:32]} 20. Bd2 {[%emt 0:08:46]} e5 {[%emt 0:02:26]} 21. dxe5 {[%emt 0:06:44]} Bxe5 {[%emt 0:00:11]} 22. Rab1 {[%emt 0:00:22]} Nd7 {[%emt 0:00:53]} 23. h5 {[%emt 0:04:48]} Nc5 {[%emt 0:01:05]} 24. Ke2 {[%emt 0:00:42]} Nxd3 {[%emt 0:02:25]} 25. Kxd3 {[%emt 0:00:06]} g5 {[%emt 0:01:08]} 26. Rhc1 {[%emt 0:14:59]} Rxc1 {[%emt 0:00:29]} 27. Rxc1 {[%emt 0:04:56]} Bxb2 {[%emt 0:00:50]} 28. Rc7+ {[%emt 0:02:23]} Ke6 {[%emt 0:00:10]} 29. e4 {[%emt 0:03:28]} dxe4+ {[%emt 0:03:15]} 30. Kxe4 {[%emt 0:00:03]} Bf6 {[%emt 0:01:47]} 31. Rc6+ {[%emt 0:07:14]} Kd7 {[%emt 0:00:12]} 32. Kd5 {[%emt 0:00:19]} Be7 {[%emt 0:00:19]} 33. Be3 {[%emt 0:05:08]} a4 {[%emt 0:01:05]} 34. Rb6 {[%emt 0:01:33]} b3 {[%emt 0:00:49]} 35. axb3 {[%emt 0:02:14]} a3 {[%emt 0:00:06]} 0-1

[Event "Vienna Chess Open 2019"]
[Site "Vienna"]
[Date "2019.08.18"]
[Round "3.7"]
[White "Buhmann, Rainer"]
[Black "Matt, Fabian"]
[Result "1/2-1/2"]
[ECO "D12"]
[WhiteElo "2574"]
[BlackElo "2271"]
[Annotator "ChessBase"]
[PlyCount "47"]
[EventDate "2019.08.17"]
[EventType "swiss"]
[EventCountry "AUT"]
[SourceTitle "playchess.com"]
[Source "ChessBase"]
[SourceQuality "1"]
[TimeControl "40/5400+30:1800+30"]

1. Nf3 {[%emt 0:00:00]} d5 {[%emt 0:00:00]} 2. d4 {[%emt 0:00:00]} c6 {[%emt 0:00:00]} 3. c4 {[%emt 0:00:00]} Nf6 {[%emt 0:00:00]} 4. e3 {[%emt 0:00:00]} Bf5 {[%emt 0:00:16]} 5. Nc3 {[%emt 0:00:00]} e6 {[%emt 0:00:06]} 6. Nh4 {[%emt 0:00:06]} Be4 {[%emt 0:00:15]} 7. f3 {[%emt 0:00:20]} Bg6 {[%emt 0:00:08]} 8. Be2 {[%emt 0:00:45]} Be7 {[%emt 0:06:01]} 9. O-O {[%emt 0:02:02]} Nbd7 {[%emt 0:01:06]} 10. cxd5 {[%emt 0:01:16]} cxd5 {[%emt 0:00:56]} 11. Qb3 {[%emt 0:05:36]} Qb8 {[%emt 0:06:10]} 12. g3 {[%emt 0:03:53]} O-O {[%emt 0:05:08]} 13. Bd2 {[%emt 0:01:59]} a6 {[%emt 0:05:42]} 14. a4 {[%emt 0:09:35]} Qd6 {[%emt 0:06:55]} 15. Na2 {[%emt 0:05:13]} e5 {[%emt 0:01:15]} 16. Rac1 {[%emt 0:05:33]} Rfe8 {[%emt 0:04:02]} 17. Rf2 {[%emt 0:06:52]} Rac8 {[%emt 0:08:38]} 18. Rxc8 {[%emt 0:06:44]} Rxc8 {[%emt 0:00:07]} 19. Nxg6 {[%emt 0:03:29]} hxg6 {[%emt 0:01:42]} 20. a5 {[%emt 0:09:32]} Rc7 {[%emt 0:16:00]} 21. Rf1 {[%emt 0:07:37]} Nf8 {[%emt 0:06:00]} 22. Rc1 {[%emt 0:02:21]} exd4 {[%emt 0:01:29]} 23. exd4 {[%emt 0:00:58]} Ne6 {[%emt 0:00:05]} 24. Rxc7 {[%emt 0:04:37]} 1/2-1/2

[Event "Vienna Chess Open 2019"]
[Site "Vienna"]
[Date "2019.08.18"]
[Round "3.7"]
[White "Cvitan, Ognjen"]
[Black "Ruff, Maximilian"]
[Result "1/2-1/2"]
[ECO "A13"]
[WhiteElo "2493"]
[BlackElo "2353"]
[Annotator "ChessBase"]
[PlyCount "51"]
[EventDate "2019.08.17"]
[EventType "swiss"]
[EventCountry "AUT"]
[SourceTitle "playchess.com"]
[Source "ChessBase"]
[SourceQuality "1"]
[TimeControl "40/5400+30:1800+30"]

1. Nf3 {[%emt 0:05:14]} Nf6 {[%emt 0:00:57]} 2. c4 {[%emt 0:03:13]} e6 {[%emt 0:00:29]} 3. g3 {[%emt 0:01:27]} d5 {[%emt 0:00:38]} 4. Bg2 {[%emt 0:00:06]} dxc4 {[%emt 0:01:35]} 5. Qa4+ {[%emt 0:00:13]} Bd7 {[%emt 0:01:47]} 6. Qxc4 {[%emt 0:00:10]} c5 {[%emt 0:00:52]} 7. Ne5 {[%emt 0:00:15]} Qc8 {[%emt 0:00:52]} 8. Nc3 {[%emt 0:00:26]} Nc6 {[%emt 0:01:47]} 9. Nxd7 {[%emt 0:00:08]} Qxd7 {[%emt 0:00:06]} 10. Qa4 {[%emt 0:02:02]} Rc8 {[%emt 0:10:58]} 11. O-O {[%emt 0:01:13]} b6 {[%emt 0:01:25]} 12. d3 {[%emt 0:00:34]} Be7 {[%emt 0:00:21]} 13. Rd1 {[%emt 0:00:24]} O-O {[%emt 0:01:16]} 14. Bd2 {[%emt 0:00:13]} Rfd8 {[%emt 0:02:18]} 15. Rac1 {[%emt 0:03:39]} Nd4 {[%emt 0:04:48]} 16. Qxd7 {[%emt 0:03:26]} Rxd7 {[%emt 0:00:04]} 17. Kf1 {[%emt 0:00:32]} h6 {[%emt 0:03:48]} 18. Be1 {[%emt 0:04:59]} Rcd8 {[%emt 0:02:45]} 19. h3 {[%emt 0:04:53]} Nf5 {[%emt 0:13:47]} 20. Bc6 {[%emt 0:04:56]} Rc7 {[%emt 0:02:36]} 21. Bg2 {[%emt 0:03:05]} Rcd7 {[%emt 0:00:24]} 22. b3 {[%emt 0:04:52]} Kf8 {[%emt 0:10:07]} 23. Nb5 {[%emt 0:03:58]} Nd4 {[%emt 0:00:46]} 24. Na3 {[%emt 0:01:56]} Nd5 {[%emt 0:01:57]} 25. Nc4 {[%emt 0:01:46]} Bf6 {[%emt 0:02:15]} 26. Bd2 {[%emt 0:03:31]} 1/2-1/2